bitfinex/quotes_SOLUSD_20250416
["timestamp","ask_amount","ask_price","bid_price","bid_amount"]
[1744767094766,14.9826677,125.97,125.95,1e-08]
[1744767095083,14.9826677,125.98,125.95,1e-08]
[1744767095463,14.9826677,125.97,125.95,1e-08]
[1744767096066,7.93902826,125.96,125.95,1e-08]
[1744767097866,7.93839803,125.97,125.95,1e-08]
[1744767099488,18.64964886,125.98,125.95,1e-08]
[1744767100083,26.58793161,125.98,125.95,1e-08]
[1744767100687,7.93828275,125.98,125.95,14.98266771]
[1744767100876,7.93828275,125.98,125.95,1e-08]
[1744767104488,33.63231656,125.97,125.95,1e-08]
[1744767104694,14.9826677,125.96,125.95,1e-08]
[1744767104893,18.64964886,125.97,125.95,1e-08]
[1744767105092,27.78270249,125.98,125.95,14.98266771]
[1744767105093,7.93828275,125.98,125.95,14.98266771]
[1744767105474,26.58709484,125.99,125.95,14.98266771]
[1744767105686,26.58709484,125.99,125.95,1e-08]
[1744767105687,41.56976254,125.99,125.95,1e-08]
[1744767105883,33.63231656,125.98,125.95,1e-08]
[1744767106087,14.9826677,125.97,125.95,1e-08]
[1744767106296,7.93902826,125.96,125.95,1e-08]
[1744767107708,26.58771089,125.98,125.95,1e-08]
[1744767109194,18.64964886,125.98,125.95,14.98266771]
[1744767110006,22.91998594,125.99,125.95,1e-08]
[1744767110297,18.64964886,125.98,125.95,1e-08]
[1744767110502,18.64964886,125.98,125.95,14.98266771]
[1744767110903,18.64964886,125.99,125.95,14.98266771]
[1744767111299,18.64964886,125.99,125.96,14.9826677]
[1744767111499,11.62,126.01,125.98,14.9826677]
[1744767111720,11.62,126.01,125.99,14.9826677]
[1744767111898,18.64964886,126.01,125.99,14.9826677]
[1744767112095,7.9339892,126.04,126.0,14.9826677]
[1744767112391,18.64964886,126.03,126.0,14.9826677]
[1744767112998,26.6026677,126.06,126.01,14.9826677]
[1744767113203,0.03,126.07,126.04,14.9826677]
[1744767113413,0.03,126.07,126.05,14.9826677]
[1744767113614,0.03,126.07,126.06,14.9826677]
[1744767115344,15.0126677,126.07,126.02,1.6494]
[1744767115496,15.0126677,126.07,126.02,16.6320677]
[1744767115701,0.03,126.07,126.03,14.9826677]
[1744767116004,15.0126677,126.07,126.02,24.56718653]
[1744767116528,7.93273044,126.06,126.02,16.6320677]
[1744767116698,18.64964886,126.05,126.02,16.6320677]
[1744767117197,7.93273044,126.06,126.02,16.6320677]
[1744767117198,7.96238481,126.07,126.03,14.9826677]
[1744767119129,0.03,126.07,126.03,22.91721253]
[1744767119335,18.67964886,126.07,126.04,14.9826677]
[1744767120127,0.03,126.07,126.04,14.9826677]
[1744767120322,0.03,126.07,126.06,14.9826677]
[1744767121534,0.03,126.07,126.05,14.9826677]
[1744767122636,0.03,126.07,126.03,7.93437445]
[1744767122812,0.03,126.07,126.04,14.9826677]
[1744767123449,14.9826677,126.05,126.01,7.9355632]
[1744767123737,18.67964886,126.07,126.03,14.9826677]
[1744767123937,18.67964886,126.07,126.01,7.9355632]
[1744767123938,0.03,126.07,126.05,14.9826677]
[1744767124110,0.03,126.07,126.06,14.9826677]
[1744767124313,0.03,126.07,126.05,14.9826677]
[1744767124511,0.03,126.07,126.04,14.9826677]
[1744767125141,32.16231656,126.07,126.02,14.9826677]
[1744767125513,22.91442631,126.08,126.04,14.9826677]
[1744767125715,7.9314375,126.09,126.05,14.9826677]
[1744767125915,22.9141052,126.09,126.02,7.93511625]
[1744767126120,14.9826677,126.08,126.03,14.9826677]
[1744767126319,14.9826677,126.07,126.02,14.9826677]
[1744767128061,18.64964886,126.05,126.01,14.9826677]
[1744767128229,14.9826677,126.04,125.99,28.1899677]
[1744767128435,14.9826677,126.04,125.99,16.5699677]
[1744767129470,18.64964886,126.05,125.96,8.0454]
[1744767129471,14.9826677,126.01,125.96,8.0454]
[1744767129761,14.9826677,125.99,125.95,1e-08]
[1744767130062,7.93776789,125.98,125.95,14.98266771]
[1744767130229,14.9826677,125.97,125.95,1e-08]
[1744767131459,33.63231656,125.96,125.95,1e-08]
[1744767131762,18.64964886,125.97,125.95,1e-08]
[1744767132062,33.63231656,125.97,125.95,1e-08]
[1744767132756,27.78218763,125.98,125.95,14.98266771]
[1744767132757,26.58741675,125.98,125.95,14.98266771]
[1744767132974,26.58741675,125.98,125.95,1e-08]
[1744767133142,41.57008445,125.98,125.95,1e-08]
[1744767133758,26.58741675,125.98,125.95,1e-08]
[1744767134331,41.57008445,125.98,125.95,1e-08]
[1744767134658,7.93713786,125.99,125.95,14.98266771]
[1744767134850,11.6,126.01,125.97,14.9826677]
[1744767135155,7.9339892,126.04,125.99,14.9826677]
[1744767135334,7.9339892,126.04,126.0,14.9826677]
[1744767135534,7.9339892,126.04,126.01,14.9826677]
[1744767136045,7.9339892,126.04,125.99,14.9826677]
[1744767136355,7.9339892,126.04,126.0,14.9826677]
[1744767136754,7.9339892,126.04,126.01,14.9826677]
[1744767137161,7.9339892,126.04,126.01,23.93489383]
[1744767139161,7.9339892,126.04,126.0,23.93489383]
[1744767140349,31.86888303,126.04,125.99,23.93489383]
[1744767140752,23.93489383,126.02,125.97,23.93489383]
[1744767141152,7.9358781,126.01,125.97,23.93489383]
[1744767141657,42.58454269,126.0,125.95,23.93489384]
[1744767141849,23.93489383,125.96,125.95,1e-08]
[1744767142376,42.58454269,125.96,125.95,1e-08]
[1744767143166,50.52357095,125.96,125.95,1e-08]
[1744767146359,70.66573252,125.96,125.95,1e-08]
[1744767147262,70.66573252,125.96,125.93,1e-08]
[1744767147263,64.64964886,125.94,125.93,1e-08]
[1744767147455,132.05972554,125.94,125.93,1e-08]
[1744767147771,108.12483171,125.94,125.93,1e-08]
[1744767148076,88.26699328,125.94,125.93,1e-08]
[1744767152078,88.12483171,125.94,125.93,1e-08]
[1744767153275,64.18993788,125.94,125.93,1e-08]
[1744767154580,88.12483171,125.94,125.93,1e-08]
[1744767154980,38.18993788,125.94,125.93,1e-08]
[1744767155187,19.54028902,125.94,125.93,1e-08]
[1744767156177,4.06749682,125.96,125.93,1e-08]
[1744767156366,11.6,125.95,125.93,1e-08]
[1744767157184,19.53978006,125.95,125.93,1e-08]
[1744767157682,42.58454269,125.94,125.93,1e-08]
[1744767157861,42.72670426,125.94,125.93,1e-08]
[1744767158971,50.66699328,125.94,125.93,1e-08]
[1744767159283,74.60188711,125.94,125.93,1e-08]
[1744767160375,50.66699328,125.94,125.93,1e-08]
[1744767162565,62.26699328,125.94,125.93,1e-08]
[1744767164596,64.64964886,125.91,125.9,0.063]
[1744767164767,88.58454269,125.91,125.9,0.063]
[1744767164967,18.79181043,125.9,125.89,0.063]
[1744767165300,33.79581589,125.9,125.89,0.063]
[1744767166497,41.73862764,125.9,125.89,0.063]
[1744767167282,50.73875981,125.9,125.89,0.063]
[1744767167971,62.35875981,125.9,125.89,0.063]
[1744767168587,50.73875981,125.9,125.89,0.063]
[1744767168891,62.35875981,125.9,125.89,0.063]
[1744767172305,62.19659824,125.9,125.89,0.063]
[1744767172475,50.59659824,125.9,125.89,0.063]
[1744767172682,19.54281175,125.9,125.89,0.063]
[1744767172899,3.97292384,125.96,125.89,25.67573763]
[1744767173204,63.3929427,125.95,125.9,24.00413763]
[1744767173505,24.00413763,125.94,125.9,24.00413763]
[1744767173702,18.64964886,125.93,125.89,25.67573763]
[1744767173875,7.94218092,125.91,125.89,1.6716]
[1744767174074,11.6,125.9,125.89,1.6716]
[1744767175283,19.54281175,125.9,125.89,1.6716]
[1744767175488,11.6,125.9,125.89,1.6716]
[1744767175997,7.94181999,125.92,125.89,1.6716]
[1744767176197,11.6,125.93,125.91,24.00413763]
[1744767176397,11.6,125.93,125.9,24.00413763]
[1744767177302,19.54101483,125.93,125.9,24.00413763]
[1744767177603,43.54515246,125.93,125.89,1.6716]
[1744767177803,19.54101483,125.93,125.89,33.61916891]
[1744767178003,19.54101483,125.93,125.89,9.61503128]
[1744767178306,19.54101483,125.93,125.89,25.67573763]
[1744767179110,24.00413763,125.92,125.89,1.6716]
[1744767179613,7.94218092,125.91,125.89,1.6716]
[1744767180512,7.94218092,125.91,125.89,0.063]
[1744767181009,11.6,125.91,125.9,24.00413763]
[1744767181215,11.6,125.91,125.89,24.06713763]
[1744767181714,11.6,125.91,125.89,0.063]
[1744767182218,19.54218296,125.91,125.89,0.063]
[1744767182682,11.6,125.91,125.9,24.00413763]
[1744767183596,11.6,125.93,125.9,24.00413763]
[1744767184112,11.6,125.93,125.9,31.94691083]
[1744767185391,11.6,125.93,125.9,7.9427732]
[1744767186813,11.6,125.94,125.91,24.00413763]
[1744767187191,11.6,125.94,125.91,14.98193037]
[1744767188503,11.6,125.94,125.9,22.92470357]
[1744767190703,18.67964886,125.96,125.92,14.98193037]
[1744767190910,11.6,125.95,125.92,14.98193037]
[1744767191205,0.03,125.96,125.93,14.98193037]
[1744767191409,11.63,125.96,125.94,14.98193037]
[1744767193520,11.63,125.96,125.93,22.92244309]
[1744767194717,34.55110514,125.96,125.92,9.48951069]
[1744767194894,14.98193037,125.94,125.9,21.11463037]
[1744767195214,26.61193037,125.96,125.91,14.98193037]
[1744767195398,11.63,125.96,125.93,14.98193037]
[1744767195714,11.63,125.96,125.94,14.98193037]
[1744767196215,11.63,125.96,125.93,14.98193037]
[1744767196701,11.63,125.96,125.93,22.92256827]
[1744767197709,0.03,125.96,125.93,22.92256827]
[1744767197934,0.03,125.96,125.93,7.9406379]
[1744767198095,0.03,125.96,125.94,14.98193037]
[1744767200109,0.03,125.96,125.94,22.92189144]
[1744767202021,0.03,125.97,125.96,0.14216157]
[1744767202203,0.03,125.97,125.96,14.98193037]
[1744767203021,0.03,125.97,125.96,15.12409194]
[1744767203820,0.03,125.97,125.96,23.0631202]
[1744767204519,0.03,125.97,125.96,22.92095863]
[1744767205008,0.03,125.97,125.96,23.0631202]
[1744767206108,0.03,125.97,125.96,23.0631202]
[1744767208319,0.03,125.97,125.96,8.08118983]
[1744767208524,0.03,125.97,125.96,23.0631202]
[1744767209097,0.03,125.97,125.96,7.93902826]
[1744767209305,0.03,125.97,125.95,34.0598]
[1744767209306,0.03,125.97,125.92,19.85333963]
[1744767209500,0.03,125.97,125.94,14.98193037]
[1744767209931,0.03,125.97,125.91,73.42499614]
[1744767210119,14.98193037,125.95,125.9,14.98193037]
[1744767210323,14.98193037,125.94,125.89,8.0062161]
[1744767210514,14.98193037,125.94,125.89,15.04493037]
[1744767210708,14.98193037,125.93,125.89,15.04493037]
[1744767210917,33.63157923,125.94,125.89,22.98802084]
[1744767211131,7.94091955,125.93,125.89,15.04493037]
[1744767211308,11.6,125.95,125.91,14.98193037]
[1744767212729,53.17070844,125.96,125.91,22.92400971]
[1744767213407,41.57070844,125.96,125.91,22.92400971]
[1744767213608,38.18877807,125.96,125.91,22.92400971]
[1744767213825,53.17070844,125.96,125.91,22.92400971]
[1744767214338,53.17070844,125.96,125.92,14.98193037]
[1744767214836,11.6,125.96,125.93,14.98193037]
[1744767216135,0.03,125.97,125.95,14.98193037]
[1744767216506,0.03,125.97,125.96,14.98193037]
[1744767217928,0.03,125.97,125.96,22.92095863]
[1744767220213,0.03,126.01,125.97,0.14216157]
[1744767220414,0.03,126.01,125.99,14.98193037]
[1744767222435,0.03,126.01,126.0,14.98193037]
[1744767222819,0.03,126.01,125.99,14.98193037]
[1744767224233,0.03,126.01,125.97,14.98193037]
[1744767224432,0.03,126.01,125.95,7.93933091]
[1744767224433,14.98193037,126.0,125.95,7.93933091]
[1744767224628,14.98193037,125.99,125.95,14.98193037]
[1744767224945,26.58193037,126.0,125.95,22.92157889]
[1744767225322,26.58193037,126.0,125.96,14.98193037]
[1744767225740,15.01193037,126.01,125.97,14.98193037]
[1744767226046,7.93650793,126.0,125.97,14.98193037]
[1744767226642,7.93650793,126.0,125.94,73.14310952]
[1744767226643,22.9184383,126.0,125.94,73.14310952]
[1744767226844,22.9184383,126.0,125.91,16.59653037]
[1744767226845,14.98193037,125.96,125.91,16.59653037]
[1744767227015,14.98193037,125.93,125.89,0.063]
[1744767227221,14.98193037,125.93,125.89,15.04493037]
[1744767227432,14.98193037,125.94,125.9,14.98193037]
[1744767227734,14.98193037,125.95,125.91,14.98193037]
[1744767227952,22.922071,125.95,125.9,22.92468748]
[1744767228641,22.922071,125.95,125.91,14.98193037]
[1744767228941,14.98193037,125.95,125.91,14.98193037]
[1744767229148,11.6,125.98,125.94,14.98193037]
[1744767229323,11.6,125.98,125.95,14.98193037]
[1744767230142,7.93745227,125.99,125.95,14.98193037]
[1744767230345,0.03,126.01,125.98,14.98193037]
[1744767230522,0.03,126.01,126.0,14.98193037]
[1744767238943,0.03,126.01,125.96,45.84627038]
[1744767239128,7.93650793,126.0,125.96,22.92081371]
[1744767239328,7.93650793,126.0,125.95,1.6146]
[1744767239329,22.9184383,126.0,125.95,22.92129983]
[1744767239528,14.98193037,125.99,125.94,7.94003047]
[1744767239721,14.98193037,125.98,125.94,22.92196084]
[1744767239928,11.58,125.99,125.96,14.98193037]
[1744767240125,7.93650793,126.0,125.96,14.98193037]
[1744767240328,33.66157923,126.01,125.99,14.98193037]
[1744767240329,0.03,126.01,125.99,14.98193037]
[1744767240651,0.03,126.01,126.0,14.98193037]
[1744767240821,0.03,126.01,125.99,14.98193037]
[1744767241021,0.03,126.01,126.0,14.98193037]
[1744767241745,18.64964886,126.0,125.95,14.98193037]
[1744767241945,14.98193037,125.98,125.89,84.83429614]
[1744767242128,18.64964886,125.98,125.91,14.98193037]
[1744767242446,14.98193037,125.97,125.92,14.98193037]
[1744767242827,33.63157923,125.98,125.93,14.98193037]
[1744767243026,14.98193037,125.97,125.93,14.98193037]
[1744767243752,14.98193037,125.95,125.9,7.94281175]
[1744767243932,14.98193037,125.95,125.89,22.98832036]
[1744767243933,14.98193037,125.94,125.89,22.98832036]
[1744767244138,45.21157923,125.95,125.9,14.98193037]
[1744767244527,14.98193037,125.94,125.89,22.98832036]
[1744767245227,31.91779283,125.94,125.9,23.97693702]
[1744767245430,31.91779283,125.94,125.89,0.063]
[1744767245431,23.97693702,125.92,125.89,0.063]
[1744767245732,42.62658588,125.93,125.89,0.063]
[1744767245936,31.91779283,125.94,125.89,24.03993702]
[1744767246337,23.97693702,125.93,125.89,24.03993702]
[1744767246959,31.91796152,125.93,125.89,24.03993702]
[1744767247636,7.9410245,125.93,125.89,31.98332485]
[1744767247955,7.9410245,125.93,125.89,24.03993702]
[1744767248836,23.97693702,125.94,125.9,23.97693702]
[1744767249033,11.58,125.95,125.91,23.97693702]
[1744767249256,23.97693702,125.96,125.92,23.97693702]
[1744767249660,31.91611403,125.96,125.92,23.97693702]
[1744767249967,23.97693702,125.95,125.9,23.97693702]
[1744767251461,31.91686174,125.95,125.9,31.91933288]
[1744767254037,23.97693702,125.93,125.89,0.063]
[1744767254253,23.97693702,125.92,125.89,0.063]
[1744767254665,23.97693702,125.93,125.89,0.063]
[1744767256132,31.91829605,125.93,125.89,0.063]
[1744767256436,42.62658588,125.9,125.89,0.063]
[1744767257871,23.97693702,125.9,125.89,0.063]
[1744767258564,50.7115592,125.9,125.89,0.063]
[1744767259361,76.7115592,125.9,125.89,0.063]
[1744767259560,50.7115592,125.9,125.89,1e-08]
[1744767259871,44.79181043,125.88,125.87,0.063]
[1744767260043,92.74568447,125.88,125.87,0.063]
[1744767260243,68.76874745,125.88,125.87,0.063]
[1744767261369,76.71282117,125.88,125.87,0.063]
[1744767261558,100.68975819,125.88,125.87,0.063]
[1744767262398,100.68975819,125.88,125.87,1e-08]
[1744767265694,38.79181043,125.87,125.85,0.35196406]
[1744767265999,64.79181043,125.79,125.76,0.063]
[1744767266172,108.31850498,125.79,125.76,0.063]
[1744767267194,138.31850498,125.79,125.78,1e-08]
[1744767267893,118.31850498,125.79,125.78,1e-08]
[1744767268393,138.31850498,125.79,125.78,1e-08]
[1744767269592,118.31850498,125.79,125.78,1e-08]
[1744767271705,138.31850498,125.79,125.78,1e-08]
[1744767271881,118.31850498,125.79,125.78,1e-08]
[1744767273487,138.31850498,125.79,125.78,1e-08]
[1744767274596,64.64964886,125.77,125.76,0.063]
[1744767274783,88.62658588,125.77,125.76,0.063]
[1744767275302,118.62658588,125.77,125.76,0.063]
[1744767276199,94.64964886,125.77,125.76,0.063]
[1744767276501,126.71976915,125.77,125.76,0.063]
[1744767276800,106.57760758,125.77,125.76,0.063]
[1744767277190,97.62977969,125.77,125.76,0.063]
[1744767278092,89.67875799,125.77,125.76,0.063]
[1744767278294,74.64964886,125.77,125.76,0.063]
[1744767278494,30.0,125.77,125.76,0.063]
[1744767278797,79.22883949,125.79,125.76,0.063]
[1744767278798,38.19953081,125.79,125.76,0.063]
[1744767279192,53.22863994,125.79,125.76,0.063]
[1744767279394,18.64964886,125.78,125.76,0.063]
[1744767279702,15.02910913,125.77,125.76,0.063]
[1744767281306,22.98013083,125.77,125.76,0.063]
[1744767281604,26.60067056,125.77,125.76,0.063]
[1744767281807,11.6,125.79,125.76,0.063]
[1744767281993,26.62910913,125.79,125.76,0.063]
[1744767283114,11.6,125.79,125.76,0.063]
[1744767283400,11.6,125.79,125.76,15.09210913]
[1744767283605,11.6,125.79,125.76,16.62540913]
[1744767283903,26.5988607,125.8,125.76,16.62540913]
[1744767284108,7.94881046,125.81,125.78,15.02910913]
[1744767284417,7.94881046,125.81,125.77,15.02910913]
[1744767285609,22.97791959,125.81,125.77,15.02910913]
[1744767285800,22.97791959,125.81,125.76,16.62540913]
[1744767287485,7.94881046,125.81,125.77,15.02910913]
[1744767288203,7.94881046,125.81,125.78,15.02910913]
[1744767288411,7.94881046,125.81,125.77,15.02910913]
[1744767288591,22.97791959,125.81,125.77,15.02910913]
[1744767288799,18.64964886,125.78,125.76,0.063]
[1744767288999,15.02910913,125.78,125.76,0.063]
[1744767289202,18.64964886,125.78,125.76,0.063]
[1744767289611,7.95038956,125.78,125.76,0.063]
[1744767290309,7.94975753,125.79,125.76,15.09210913]
[1744767290700,7.94975753,125.79,125.76,0.063]
[1744767292519,7.94946818,125.8,125.76,15.09210913]
[1744767294716,7.94946818,125.8,125.76,23.04371695]
[1744767295022,15.02910913,125.81,125.78,15.02910913]
[1744767295023,7.94849376,125.81,125.78,15.02910913]
[1744767295395,26.59624771,125.84,125.8,15.02910913]
[1744767296128,26.59624771,125.84,125.77,16.54020913]
[1744767296129,15.02910913,125.82,125.77,16.54020913]
[1744767296501,15.02910913,125.81,125.77,1.5111]
[1744767297117,7.94912559,125.8,125.77,1.5111]
[1744767297715,15.02910913,125.79,125.76,0.063]
[1744767297896,15.02910913,125.78,125.76,0.063]
[1744767298217,15.02910913,125.79,125.76,0.063]
[1744767298419,33.67875799,125.79,125.76,0.063]
[1744767298608,41.02910913,125.82,125.78,15.02910913]
[1744767298914,41.02910913,125.82,125.77,15.02910913]
[1744767299418,48.97724605,125.82,125.77,22.98001222]
[1744767299628,33.94813692,125.82,125.78,15.02910913]
[1744767299926,281.98626913,125.85,125.8,15.02910913]
[1744767300103,271.01537826,125.85,125.8,15.02910913]
[1744767300303,255.98597225,125.85,125.82,15.02910913]
[1744767300505,22.97508138,125.85,125.8,15.02910913]
[1744767300821,41.62439979,125.86,125.82,15.02910913]
[1744767301134,11.6,125.87,125.84,15.02910913]
[1744767301429,15.02910913,125.86,125.81,15.02910913]
[1744767301629,15.02910913,125.83,125.79,1.624]
[1744767301798,33.67875799,125.84,125.8,15.02910913]
[1744767302840,41.6254829,125.84,125.8,15.02910913]
[1744767303308,7.94627884,125.85,125.8,15.02910913]
[1744767303509,37.6,125.87,125.79,9.57323796]
[1744767303510,7.94559295,125.86,125.81,15.02910913]
[1744767303723,18.64964886,125.85,125.82,15.02910913]
[1744767303931,19.54480925,125.87,125.83,15.02910913]
[1744767304222,33.67875799,125.86,125.81,15.02910913]
[1744767304518,15.02910913,125.82,125.77,73.15362691]
[1744767304721,15.02910913,125.82,125.77,88.18273604]
[1744767304916,15.02910913,125.83,125.78,15.02910913]
[1744767305424,18.64964886,125.84,125.78,15.02910913]
[1744767305626,15.02910913,125.83,125.78,15.02910913]
[1744767306225,18.64964886,125.82,125.78,22.97938521]
[1744767306614,15.02910913,125.83,125.78,22.97938521]
[1744767306812,18.64964886,125.83,125.79,15.02910913]
[1744767307215,7.94687798,125.84,125.8,15.02910913]
[1744767307727,7.94687798,125.84,125.78,7.95027608]
[1744767307728,18.64964886,125.83,125.79,15.02910913]
[1744767308022,33.67875799,125.83,125.78,15.02910913]
[1744767308225,7.94786202,125.82,125.78,15.02910913]
[1744767309422,33.67875799,125.81,125.76,1.57]
[1744767309608,15.02910913,125.78,125.76,0.063]
[1744767309924,18.64964886,125.8,125.76,0.063]
[1744767310106,18.64964886,125.79,125.76,0.063]
[1744767310608,18.64964886,125.77,125.76,0.063]
[1744767310912,15.02910913,125.77,125.76,0.063]
[1744767312326,22.98013083,125.77,125.76,0.063]
[1744767313021,41.62977969,125.77,125.76,0.063]
[1744767314220,67.77194126,125.77,125.72,0.063]
[1744767314423,33.67875799,125.73,125.72,0.063]
[1744767315226,18.64964886,125.73,125.72,0.063]
[1744767315726,33.67875799,125.73,125.72,0.063]
[1744767316217,27.83300198,125.75,125.72,0.063]
[1744767316218,22.98139541,125.75,125.72,0.063]
[1744767316420,7.95228628,125.75,125.72,15.09210913]
[1744767316609,18.64964886,125.76,125.72,15.09210913]
[1744767316806,45.55129305,125.77,125.73,15.02910913]
[1744767317019,45.55129305,125.77,125.74,15.02910913]
[1744767317733,45.55129305,125.77,125.73,15.02910913]
[1744767318430,60.58040218,125.77,125.72,15.09210913]
[1744767318924,60.58040218,125.77,125.73,15.02910913]
[1744767319142,45.55129305,125.77,125.73,15.02910913]
[1744767319543,60.58040218,125.77,125.72,15.09210913]
[1744767321339,33.67875799,125.76,125.72,15.09210913]
[1744767321550,33.67875799,125.76,125.72,0.063]
[1744767322133,15.02910913,125.76,125.72,0.063]
[1744767322341,60.58040218,125.77,125.72,23.0461596]
[1744767322836,60.58040218,125.77,125.72,23.04625456]
[1744767324041,11.6,125.77,125.73,16.54740913]
[1744767324219,11.6,125.77,125.74,15.02910913]
[1744767324421,19.55113593,125.77,125.73,16.54740913]
[1744767325340,34.58024506,125.77,125.73,1.5183]
[1744767326039,15.02910913,125.76,125.72,0.063]
[1744767326244,15.02910913,125.73,125.72,0.063]
[1744767327144,15.02910913,125.74,125.72,0.063]
[1744767328037,22.98216088,125.74,125.72,0.063]
[1744767328213,7.95305175,125.74,125.72,0.063]
[1744767328948,26.62910913,125.77,125.73,15.02910913]
[1744767329123,21.6211,125.81,125.73,15.02910913]
[1744767329124,7.94912559,125.8,125.76,15.02910913]
[1744767329321,7.94849376,125.81,125.78,15.02910913]
[1744767329519,30.0,125.79,125.78,15.02910913]
[1744767329718,30.0,125.79,125.77,15.02910913]
[1744767330447,30.0,125.79,125.73,1.6037]
[1744767330632,45.02910913,125.79,125.74,15.02910913]
[1744767330833,18.64964886,125.78,125.74,15.02910913]
[1744767331143,33.67875799,125.78,125.73,16.63280913]
[1744767332121,15.02910913,125.76,125.72,21.11510913]
[1744767332346,15.02910913,125.76,125.72,15.09210913]
[1744767332547,7.95228628,125.75,125.72,15.09210913]
[1744767332725,7.95228628,125.75,125.72,0.063]
[1744767332926,18.64964886,125.74,125.72,0.063]
[1744767333742,33.67875799,125.74,125.72,0.063]
[1744767334547,7.95355126,125.73,125.72,0.063]
[1744767335019,26.60285722,125.74,125.72,0.063]
[1744767335641,26.0,125.77,125.73,15.02910913]
[1744767336033,33.95124526,125.77,125.74,15.02910913]
[1744767336434,33.95124526,125.77,125.72,0.063]
[1744767336435,18.64964886,125.74,125.72,0.063]
[1744767336740,22.98228436,125.74,125.72,0.063]
[1744767337447,22.98172201,125.75,125.72,0.063]
[1744767337749,22.98172201,125.75,125.72,15.09210913]
[1744767337750,7.95261288,125.75,125.72,15.09210913]
[1744767337946,7.95261288,125.75,125.72,0.063]
[1744767340463,22.98172201,125.75,125.72,0.063]
[1744767342756,7.95261288,125.75,125.72,0.063]
[1744767345163,26.0,125.77,125.73,16.58150913]
[1744767345459,38.20037544,125.78,125.74,15.02910913]
[1744767345645,26.59814262,125.81,125.77,15.02910913]
[1744767345839,7.94849376,125.81,125.77,15.02910913]
[1744767346045,7.94849376,125.81,125.78,15.02910913]
[1744767346248,30.0,125.79,125.78,15.02910913]
[1744767347266,0.03,125.83,125.79,1.5249]
[1744767347473,0.03,125.83,125.81,15.02910913]
[1744767349668,0.03,125.83,125.76,60.90715431]
[1744767349669,15.02910913,125.82,125.77,22.97979529]
[1744767350235,15.02910913,125.82,125.77,15.02910913]
[1744767350758,33.70875799,125.83,125.78,15.02910913]
[1744767351142,0.03,125.83,125.81,15.02910913]
[1744767352460,0.03,125.83,125.82,15.02910913]
[1744767353840,0.03,125.83,125.82,38.01087983]
[1744767354151,0.03,125.83,125.82,45.95874185]
[1744767354557,0.03,125.83,125.82,30.78747115]
[1744767355059,0.03,125.83,125.82,45.81658028]
[1744767355264,0.03,125.89,125.82,84.47804577]
[1744767355470,0.03,125.89,125.87,15.02910913]
[1744767356962,0.03,125.89,125.88,15.02910913]
[1744767357147,0.03,125.89,125.88,16.63870913]
[1744767357745,0.03,125.89,125.86,19.52507638]
[1744767358068,0.03,125.89,125.88,15.02910913]
[1744767358374,0.03,125.92,125.91,26.0]
[1744767358667,0.03,125.95,125.91,71.40091956]
[1744767358873,0.03,125.95,125.94,15.02910913]
[1744767359080,0.03,125.95,125.94,30.20037983]
[1744767360372,0.03,125.95,125.94,38.14066885]
[1744767360950,0.03,125.97,125.96,26.0]
[1744767361171,0.03,126.01,125.96,80.30319911]
[1744767361373,0.03,126.01,126.0,23.93138868]
[1744767361950,0.03,126.01,126.0,48.00493893]
[1744767362153,0.03,126.01,126.0,66.65458779]
[1744767362363,0.03,126.02,126.01,7.9358781]
[1744767362578,0.03,126.02,126.01,43.44726678]
[1744767362981,0.03,126.02,126.01,88.23907721]
[1744767363183,0.03,126.03,126.02,25.20441043]
[1744767363384,0.03,126.03,126.02,49.13579911]
[1744767363564,0.03,126.03,126.02,30.48615025]
[1744767363960,0.03,126.03,126.02,23.93138868]
[1744767364164,0.03,126.03,126.01,33.9358781]
[1744767364165,0.03,126.03,126.0,11.58]
[1744767364466,42.58103754,126.01,125.96,76.78309614]
[1744767364665,23.93138868,126.0,125.96,65.20309614]
[1744767364868,23.93138868,125.98,125.93,23.93138868]
[1744767365085,23.93138868,125.97,125.92,31.8726667]
[1744767365383,23.93138868,125.94,125.9,65.20309614]
[1744767365555,23.93138868,125.93,125.88,31.87532353]
[1744767365752,23.93138868,125.93,125.88,23.93138868]
[1744767366156,23.93138868,125.91,125.86,23.93138868]
[1744767366363,18.64964886,125.92,125.87,23.93138868]
[1744767366573,42.58103754,125.92,125.87,23.93138868]